[Event "GrandPrix_29.05"]
[Site "Chess.com"]
[Date "2020.05.29"]
[Round "3"]
[White "Matibar"]
[Black "Spartakus1975"]
[Result "1/2-1/2"]
[WhiteElo "2433"]
[BlackElo "2329"]
[TimeControl "600+2"]
[EndTime "10:25:46 PDT"]
[Termination "Game drawn by agreement"]

1. e4 {[%clk 0:09:56.2]} 1... e6 {[%clk 0:09:52.8]} 2. d4 {[%clk 0:09:53.3]}
2... d5 {[%clk 0:09:53.1]} 3. Nc3 {[%clk 0:09:55.2]} 3... Nf6 {[%clk 0:09:50.1]}
4. Bg5 {[%clk 0:09:52.7]} 4... Bb4 {[%clk 0:09:45.8]} 5. e5 {[%clk 0:09:42.7]}
5... h6 {[%clk 0:09:45.4]} 6. Bh4 {[%clk 0:09:25.9]} 6... g5 {[%clk 0:09:37.4]}
7. Bg3 {[%clk 0:09:26.7]} 7... Ne4 {[%clk 0:09:30.2]} 8. Ne2 {[%clk 0:09:14.6]}
8... c5 {[%clk 0:08:57]} 9. a3 {[%clk 0:09:14.5]} 9... Bxc3+ {[%clk 0:07:51.3]}
10. Nxc3 {[%clk 0:08:53.9]} 10... Qa5 {[%clk 0:06:56.1]} 11. dxc5 {[%clk
0:08:29.5]} 11... Nxc3 {[%clk 0:06:42.9]} 12. Qd2 {[%clk 0:08:30.2]} 12... d4
{[%clk 0:05:19.7]} 13. bxc3 {[%clk 0:08:25.9]} 13... dxc3 {[%clk 0:05:18.3]} 14.
Qd6 {[%clk 0:07:56.7]} 14... Nd7 {[%clk 0:05:12.8]} 15. h4 {[%clk 0:07:39.8]}
15... g4 {[%clk 0:04:53.2]} 16. h5 {[%clk 0:07:29.8]} 16... Qxc5 {[%clk
0:04:48.7]} 17. Rd1 {[%clk 0:07:28.7]} 17... b6 {[%clk 0:04:25.2]} 18. Be2
{[%clk 0:07:25.1]} 18... Qxd6 {[%clk 0:04:11.2]} 19. Rxd6 {[%clk 0:06:55.5]}
19... Bb7 {[%clk 0:04:10.2]} 20. Bb5 {[%clk 0:06:41]} 20... O-O-O {[%clk
0:04:08.9]} 21. Bh4 {[%clk 0:06:38.3]} 21... Bxg2 {[%clk 0:02:52.9]} 22. Bxd8
{[%clk 0:06:36.2]} 22... Rxd8 {[%clk 0:02:52.8]} 23. Rg1 {[%clk 0:05:55.3]}
23... Bf3 {[%clk 0:02:51.5]} 24. Rd3 {[%clk 0:05:54.8]} 24... Nxe5 {[%clk
0:02:45.5]} 25. Rxc3+ {[%clk 0:05:55.8]} 25... Kb7 {[%clk 0:02:43.6]} 26. Be2
{[%clk 0:05:57.2]} 26... f5 {[%clk 0:02:21.4]} 27. Re3 {[%clk 0:05:52.5]} 27...
Rd5 {[%clk 0:02:21.3]} 28. c4 {[%clk 0:05:36.2]} 28... Ra5 {[%clk 0:02:02.7]}
29. Kd2 {[%clk 0:05:36.9]} 29... Kc6 {[%clk 0:01:27.4]} 30. Rb1 {[%clk
0:05:09.9]} 30... Kd6 {[%clk 0:01:15.4]} 31. Rb5 {[%clk 0:04:47.3]} 31... Bxe2
{[%clk 0:01:08]} 32. Rxa5 {[%clk 0:03:52.1]} 32... Nxc4+ {[%clk 0:00:58.5]} 33.
Kxe2 {[%clk 0:03:53.2]} 33... Nxa5 {[%clk 0:00:54.9]} 34. Rd3+ {[%clk
0:03:54.4]} 34... Ke7 {[%clk 0:00:55.3]} 35. Rc3 {[%clk 0:03:55.3]} 35... Kf6
{[%clk 0:00:53.2]} 36. Rc7 {[%clk 0:03:52.9]} 36... a6 {[%clk 0:00:49.7]} 37.
Ra7 {[%clk 0:03:39.6]} 37... Nc4 {[%clk 0:00:48.9]} 38. Rxa6 {[%clk 0:03:40.8]}
38... f4 {[%clk 0:00:37.4]} 39. a4 {[%clk 0:03:25.6]} 39... Kf5 {[%clk
0:00:18.8]} 40. Kd3 {[%clk 0:03:08.3]} 40... g3 {[%clk 0:00:10.5]} 41. fxg3
{[%clk 0:03:09.4]} 41... fxg3 {[%clk 0:00:09.8]} 42. Ke2 {[%clk 0:03:11]} 42...
Kg4 {[%clk 0:00:08.9]} 43. Ra8 {[%clk 0:03:11.8]} 43... Nb2 {[%clk 0:00:05.9]}
44. Rg8+ {[%clk 0:02:30.6]} 44... Kxh5 {[%clk 0:00:06.5]} 45. Rxg3 {[%clk
0:02:31.4]} 45... Nxa4 {[%clk 0:00:07.9]} 46. Rb3 {[%clk 0:02:29.1]} 46... Kg5
{[%clk 0:00:06.4]} 47. Kf3 {[%clk 0:02:27.5]} 47... Kf5 {[%clk 0:00:05.9]} 48.
Rb4 {[%clk 0:02:28.2]} 48... Nc5 {[%clk 0:00:06.6]} 49. Rxb6 {[%clk 0:02:29.3]}
49... h5 {[%clk 0:00:07.8]} 1/2-1/2

[Event "GrandPrix_29.05"]
[Site "Chess.com"]
[Date "2020.05.29"]
[Round "3"]
[White "pheonixking2000"]
[Black "VSERGUEI"]
[Result "1-0"]
[WhiteElo "2641"]
[BlackElo "2501"]
[TimeControl "600+2"]
[EndTime "10:25:49 PDT"]
[Termination "pheonixking2000 won on time"]

1. c4 {[%clk 0:09:54.4]} 1... e5 {[%clk 0:09:59.4]} 2. g3 {[%clk 0:09:52.5]}
2... Nf6 {[%clk 0:09:58.1]} 3. Bg2 {[%clk 0:09:50.8]} 3... c6 {[%clk 0:09:57.7]}
4. Nf3 {[%clk 0:09:50.3]} 4... e4 {[%clk 0:09:47.1]} 5. Nd4 {[%clk 0:09:47.5]}
5... d5 {[%clk 0:09:46.9]} 6. Nc3 {[%clk 0:09:39.9]} 6... dxc4 {[%clk
0:09:20.5]} 7. Nc2 {[%clk 0:09:39.9]} 7... Bc5 {[%clk 0:08:29]} 8. O-O {[%clk
0:09:38.8]} 8... h5 {[%clk 0:08:05.2]} 9. Ne3 {[%clk 0:09:14.9]} 9... h4 {[%clk
0:07:28]} 10. Qc2 {[%clk 0:09:12.5]} 10... hxg3 {[%clk 0:07:17.9]} 11. hxg3
{[%clk 0:09:12.1]} 11... Bxe3 {[%clk 0:07:05.4]} 12. dxe3 {[%clk 0:09:11.6]}
12... Bf5 {[%clk 0:05:19.4]} 13. Nxe4 {[%clk 0:09:10]} 13... Nxe4 {[%clk
0:04:38.6]} 14. Bxe4 {[%clk 0:09:09.2]} 14... Bxe4 {[%clk 0:04:37.6]} 15. Qxe4+
{[%clk 0:09:08.9]} 15... Qe7 {[%clk 0:04:37.5]} 16. Qxe7+ {[%clk 0:08:27.7]}
16... Kxe7 {[%clk 0:04:37.4]} 17. Bd2 {[%clk 0:08:28.8]} 17... Nd7 {[%clk
0:04:31.9]} 18. Rfc1 {[%clk 0:08:29.2]} 18... b5 {[%clk 0:04:28.2]} 19. b3
{[%clk 0:08:26.6]} 19... a5 {[%clk 0:03:58.1]} 20. bxc4 {[%clk 0:07:51.9]} 20...
b4 {[%clk 0:03:57.9]} 21. c5 {[%clk 0:07:31]} 21... Rhb8 {[%clk 0:03:51.8]} 22.
Rc4 {[%clk 0:07:20.5]} 22... Rb5 {[%clk 0:03:42]} 23. a3 {[%clk 0:07:11.2]}
23... b3 {[%clk 0:03:26.3]} 24. a4 {[%clk 0:07:07.5]} 24... Rxc5 {[%clk
0:03:23.1]} 25. Re4+ {[%clk 0:06:39.3]} 25... Kd8 {[%clk 0:02:44.2]} 26. Rb1
{[%clk 0:06:21.5]} 26... Rb8 {[%clk 0:02:40.6]} 27. Rd4 {[%clk 0:06:11.2]} 27...
Kc7 {[%clk 0:02:00.7]} 28. Rd3 {[%clk 0:05:39.7]} 28... b2 {[%clk 0:01:57]} 29.
Rc3 {[%clk 0:05:11.1]} 29... Rxc3 {[%clk 0:01:43.2]} 30. Bxc3 {[%clk 0:05:13]}
30... Rb3 {[%clk 0:01:43.3]} 31. Bd4 {[%clk 0:05:09.3]} 31... Nb6 {[%clk
0:01:23.5]} 32. Rxb2 {[%clk 0:05:07.1]} 32... Rxb2 {[%clk 0:01:13]} 33. Bxb2
{[%clk 0:05:09]} 33... Nxa4 {[%clk 0:00:46.5]} 34. Bxg7 {[%clk 0:05:10.2]} 34...
Nc5 {[%clk 0:00:39.8]} 35. g4 {[%clk 0:04:26.2]} 35... a4 {[%clk 0:00:36.8]} 36.
Bb2 {[%clk 0:03:47]} 36... Kb6 {[%clk 0:00:28.6]} 37. f4 {[%clk 0:03:46.6]}
37... Kb5 {[%clk 0:00:27.8]} 38. f5 {[%clk 0:03:43.3]} 38... Kc4 {[%clk
0:00:17.4]} 39. Kg2 {[%clk 0:03:31.9]} 39... Kb3 {[%clk 0:00:17]} 40. Bh8 {[%clk
0:02:50.9]} 40... a3 {[%clk 0:00:16.8]} 41. g5 {[%clk 0:02:47.6]} 41... a2
{[%clk 0:00:07.4]} 42. Bd4 {[%clk 0:02:21.7]} 42... Ne4 {[%clk 0:00:04.3]} 43.
g6 {[%clk 0:02:22.8]} 43... fxg6 {[%clk 0:00:04.2]} 44. fxg6 {[%clk 0:02:24.7]}
44... c5 {[%clk 0:00:04.4]} 45. Ba1 {[%clk 0:02:13]} 1-0

[Event "GrandPrix_29.05"]
[Site "Chess.com"]
[Date "2020.05.29"]
[Round "3"]
[White "SantoBlue"]
[Black "BairaKovanova"]
[Result "1-0"]
[WhiteElo "2461"]
[BlackElo "2005"]
[TimeControl "600+2"]
[EndTime "10:25:49 PDT"]
[Termination "SantoBlue won by resignation"]

1. e4 {[%clk 0:09:57.2]} 1... e5 {[%clk 0:09:59.9]} 2. Nf3 {[%clk 0:09:55.5]}
2... Nc6 {[%clk 0:10:00.8]} 3. Bc4 {[%clk 0:09:57]} 3... Nf6 {[%clk 0:10:00.9]}
4. d4 {[%clk 0:09:57.2]} 4... exd4 {[%clk 0:10:01.1]} 5. e5 {[%clk 0:09:59.1]}
5... d5 {[%clk 0:10:02.1]} 6. Bb5 {[%clk 0:10:00.6]} 6... Ne4 {[%clk 0:10:03]}
7. Nxd4 {[%clk 0:10:01.8]} 7... Bd7 {[%clk 0:10:03.2]} 8. Bxc6 {[%clk
0:10:02.1]} 8... bxc6 {[%clk 0:10:04]} 9. O-O {[%clk 0:10:03.7]} 9... Bc5 {[%clk
0:09:12.1]} 10. f3 {[%clk 0:09:50.6]} 10... Ng5 {[%clk 0:09:11]} 11. f4 {[%clk
0:09:51]} 11... Ne4 {[%clk 0:09:09.7]} 12. Be3 {[%clk 0:09:51]} 12... Bb6 {[%clk
0:08:42.6]} 13. Nd2 {[%clk 0:09:49.9]} 13... Nxd2 {[%clk 0:07:16.1]} 14. Qxd2
{[%clk 0:09:48.7]} 14... c5 {[%clk 0:07:02]} 15. Nf3 {[%clk 0:09:46.8]} 15...
Bc6 {[%clk 0:06:59.5]} 16. a4 {[%clk 0:09:31.8]} 16... a5 {[%clk 0:06:45.6]} 17.
f5 {[%clk 0:09:25.9]} 17... d4 {[%clk 0:06:37.9]} 18. Bf2 {[%clk 0:08:59.1]}
18... Qd5 {[%clk 0:06:36.5]} 19. b3 {[%clk 0:08:53.5]} 19... O-O-O {[%clk
0:06:28.6]} 20. Qd3 {[%clk 0:08:32.8]} 20... g5 {[%clk 0:06:21]} 21. Rae1 {[%clk
0:07:27.1]} 21... Rhg8 {[%clk 0:05:49.1]} 22. Bg3 {[%clk 0:07:08.3]} 22... h5
{[%clk 0:05:42.6]} 23. e6 {[%clk 0:06:26.3]} 23... f6 {[%clk 0:05:10.2]} 24. Re2
{[%clk 0:05:28.8]} 24... h4 {[%clk 0:05:07.8]} 25. Be1 {[%clk 0:05:25.9]} 25...
Bb7 {[%clk 0:04:12.2]} 26. Nd2 {[%clk 0:04:19.1]} 26... Rh8 {[%clk 0:02:17.7]}
27. Ne4 {[%clk 0:03:55.1]} 27... Rh6 {[%clk 0:01:53.7]} 28. h3 {[%clk
0:03:29.2]} 28... Qc6 {[%clk 0:01:18.5]} 29. Nd2 {[%clk 0:03:11.1]} 29... g4
{[%clk 0:01:13.1]} 30. Nc4 {[%clk 0:02:29.7]} 30... gxh3 {[%clk 0:00:46.8]} 31.
Qxh3 {[%clk 0:02:30.4]} 31... Rg8 {[%clk 0:00:34.6]} 32. Rf4 {[%clk 0:02:15.8]}
32... Rh7 {[%clk 0:00:28.4]} 33. Rg4 {[%clk 0:01:58.8]} 33... Rhg7 {[%clk
0:00:17]} 34. Rxg7 {[%clk 0:01:54.6]} 34... Rxg7 {[%clk 0:00:18.1]} 35. Bxh4
{[%clk 0:01:49.3]} 35... Rh7 {[%clk 0:00:14.8]} 36. Qg4 {[%clk 0:01:44]} 36...
Rh8 {[%clk 0:00:14.8]} 37. Bxf6 {[%clk 0:01:40.9]} 37... Re8 {[%clk 0:00:13.4]}
38. Qg6 {[%clk 0:01:38]} 38... Kb8 {[%clk 0:00:10]} 39. Ne5 {[%clk 0:01:38.5]}
1-0

[Event "GrandPrix_29.05"]
[Site "Chess.com"]
[Date "2020.05.29"]
[Round "3"]
[White "vpantev"]
[Black "Murad_Ibrahimli"]
[Result "1-0"]
[WhiteElo "2632"]
[BlackElo "2600"]
[TimeControl "600+2"]
[EndTime "10:26:02 PDT"]
[Termination "vpantev won by resignation"]

1. d4 {[%clk 0:10:00.2]} 1... Nf6 {[%clk 0:09:59.6]} 2. Nf3 {[%clk 0:10:00.7]}
2... e6 {[%clk 0:09:58.8]} 3. Bf4 {[%clk 0:10:01]} 3... b6 {[%clk 0:09:54]} 4.
e3 {[%clk 0:10:01.3]} 4... Bb7 {[%clk 0:09:52.8]} 5. Bd3 {[%clk 0:09:58.2]} 5...
c5 {[%clk 0:09:51.5]} 6. c3 {[%clk 0:09:57.6]} 6... Be7 {[%clk 0:09:48.8]} 7. h3
{[%clk 0:09:57.9]} 7... cxd4 {[%clk 0:09:40.5]} 8. cxd4 {[%clk 0:09:58.3]} 8...
d6 {[%clk 0:09:38.2]} 9. Nc3 {[%clk 0:09:56.6]} 9... O-O {[%clk 0:09:37.3]} 10.
O-O {[%clk 0:09:57.1]} 10... a6 {[%clk 0:09:38.1]} 11. Rc1 {[%clk 0:09:42.6]}
11... b5 {[%clk 0:09:23.2]} 12. a3 {[%clk 0:09:43.1]} 12... Nbd7 {[%clk
0:09:17.5]} 13. Qe2 {[%clk 0:09:31.1]} 13... Re8 {[%clk 0:09:15.3]} 14. Bg5
{[%clk 0:09:23.4]} 14... Nf8 {[%clk 0:09:11.4]} 15. Bxf6 {[%clk 0:09:09.1]}
15... Bxf6 {[%clk 0:09:10.3]} 16. Be4 {[%clk 0:09:09.2]} 16... d5 {[%clk
0:09:06.7]} 17. Bb1 {[%clk 0:09:08.5]} 17... Nd7 {[%clk 0:09:07.9]} 18. Rc2
{[%clk 0:08:56.6]} 18... Qb8 {[%clk 0:08:47.6]} 19. Rfc1 {[%clk 0:08:54.2]}
19... Nb6 {[%clk 0:08:47.4]} 20. Ne1 {[%clk 0:08:19.2]} 20... e5 {[%clk
0:08:38.1]} 21. dxe5 {[%clk 0:08:09.9]} 21... Bxe5 {[%clk 0:08:36.8]} 22. Nf3
{[%clk 0:07:34.9]} 22... Bf6 {[%clk 0:06:17.1]} 23. Rd2 {[%clk 0:07:25.9]} 23...
g6 {[%clk 0:06:00.6]} 24. Nd4 {[%clk 0:07:16.6]} 24... Nc4 {[%clk 0:05:59.2]}
25. Rdd1 {[%clk 0:07:12.5]} 25... Qd6 {[%clk 0:05:16.7]} 26. Ba2 {[%clk
0:07:04.1]} 26... Rac8 {[%clk 0:05:03.8]} 27. a4 {[%clk 0:06:48.1]} 27... b4
{[%clk 0:04:47.7]} 28. Nxd5 {[%clk 0:06:36.3]} 28... Qxd5 {[%clk 0:03:50.6]} 29.
Nf3 {[%clk 0:06:35.5]} 29... Qf5 {[%clk 0:02:56.7]} 30. Rxc4 {[%clk 0:06:33.3]}
30... Rxc4 {[%clk 0:02:22.4]} 31. Bxc4 {[%clk 0:06:20.4]} 31... a5 {[%clk
0:01:49.1]} 32. b3 {[%clk 0:06:19.8]} 32... Rd8 {[%clk 0:01:32.4]} 33. Rxd8+
{[%clk 0:06:09.1]} 33... Bxd8 {[%clk 0:01:31.4]} 34. Qd3 {[%clk 0:06:02.3]}
34... Qf6 {[%clk 0:01:01.6]} 35. Bd5 {[%clk 0:05:55.1]} 35... Ba6 {[%clk
0:00:47.8]} 36. Bc4 {[%clk 0:05:13.9]} 36... Bb7 {[%clk 0:00:43.8]} 37. Ne5
{[%clk 0:04:52.9]} 37... Bc7 {[%clk 0:00:25.5]} 38. Nxf7 {[%clk 0:04:47.6]}
38... Qa1+ {[%clk 0:00:24.4]} 39. Qf1 {[%clk 0:04:48]} 39... Qxf1+ {[%clk
0:00:18.9]} 40. Kxf1 {[%clk 0:04:48.1]} 40... Kg7 {[%clk 0:00:18.8]} 41. Ng5
{[%clk 0:04:48.7]} 41... Be5 {[%clk 0:00:19.1]} 42. f3 {[%clk 0:04:38.8]} 42...
h6 {[%clk 0:00:18.5]} 43. Ne6+ {[%clk 0:04:39.3]} 43... Kf6 {[%clk 0:00:19.6]}
44. Nc5 {[%clk 0:04:39.1]} 44... Bc6 {[%clk 0:00:20.9]} 45. Ke2 {[%clk
0:04:26.7]} 45... Bd6 {[%clk 0:00:19.8]} 46. Nd3 {[%clk 0:04:22.7]} 46... g5
{[%clk 0:00:21.1]} 47. g4 {[%clk 0:04:18.6]} 47... Be8 {[%clk 0:00:20.7]} 48.
Bd5 {[%clk 0:04:08]} 48... h5 {[%clk 0:00:21]} 49. f4 {[%clk 0:04:06.4]} 49...
h4 {[%clk 0:00:19.5]} 50. Kf3 {[%clk 0:04:03.3]} 50... Bd7 {[%clk 0:00:18.8]}
51. Nf2 {[%clk 0:04:01.6]} 51... gxf4 {[%clk 0:00:19.1]} 52. exf4 {[%clk
0:03:58.9]} 52... Bc7 {[%clk 0:00:17.5]} 53. Ne4+ {[%clk 0:03:59.7]} 53... Ke7
{[%clk 0:00:18.7]} 54. f5 {[%clk 0:03:58]} 54... Be5 {[%clk 0:00:19.7]} 55. Ke3
{[%clk 0:03:45.5]} 55... Bb2 {[%clk 0:00:17.2]} 56. Kd3 {[%clk 0:03:42.5]} 56...
Be5 {[%clk 0:00:17.7]} 57. Ng5 {[%clk 0:03:40.3]} 57... Kf6 {[%clk 0:00:14.6]}
58. Nf3 {[%clk 0:03:40.5]} 58... Bg3 {[%clk 0:00:15.9]} 59. Be4 {[%clk
0:03:41.2]} 59... Be8 {[%clk 0:00:13.1]} 60. g5+ {[%clk 0:03:40.8]} 60... Ke7
{[%clk 0:00:14.3]} 61. Bd5 {[%clk 0:03:37.8]} 61... Bd7 {[%clk 0:00:14.6]} 62.
f6+ {[%clk 0:03:36.4]} 62... Kd6 {[%clk 0:00:15.5]} 63. Ke4 {[%clk 0:03:28.2]}
63... Bxh3 {[%clk 0:00:16.5]} 64. g6 {[%clk 0:03:27]} 64... Be6 {[%clk
0:00:16.8]} 65. Bxe6 {[%clk 0:03:25.6]} 65... Kxe6 {[%clk 0:00:18.1]} 66. g7
{[%clk 0:03:26.9]} 66... Kf7 {[%clk 0:00:19.2]} 67. Kf5 {[%clk 0:03:28]} 67...
h3 {[%clk 0:00:18.9]} 68. Ng5+ {[%clk 0:03:28.7]} 1-0

[Event "GrandPrix_29.05"]
[Site "Chess.com"]
[Date "2020.05.29"]
[Round "3"]
[White "switlave"]
[Black "crazyboy26"]
[Result "0-1"]
[WhiteElo "1849"]
[BlackElo "2265"]
[TimeControl "600+2"]
[EndTime "10:26:03 PDT"]
[Termination "crazyboy26 won by checkmate"]

1. d4 {[%clk 0:10:01.9]} 1... e6 {[%clk 0:09:56.6]} 2. Bf4 {[%clk 0:10:02.9]}
2... c5 {[%clk 0:09:42.6]} 3. e3 {[%clk 0:09:59.7]} 3... Nc6 {[%clk 0:09:41.7]}
4. c3 {[%clk 0:09:58]} 4... Nf6 {[%clk 0:09:27]} 5. Nd2 {[%clk 0:09:48.6]} 5...
d5 {[%clk 0:09:27.1]} 6. Ngf3 {[%clk 0:09:47.3]} 6... c4 {[%clk 0:09:25.2]} 7.
b3 {[%clk 0:09:07.4]} 7... b5 {[%clk 0:09:22.1]} 8. Qc2 {[%clk 0:08:32]} 8...
Nh5 {[%clk 0:06:33.6]} 9. Bg5 {[%clk 0:08:06.2]} 9... f6 {[%clk 0:06:32]} 10.
Bh4 {[%clk 0:08:04.8]} 10... g5 {[%clk 0:06:32.4]} 11. g4 {[%clk 0:07:25]} 11...
gxh4 {[%clk 0:06:02.1]} 12. gxh5 {[%clk 0:07:24]} 12... f5 {[%clk 0:05:54.3]}
13. a4 {[%clk 0:07:01.2]} 13... cxb3 {[%clk 0:05:33.3]} 14. Qxb3 {[%clk
0:06:40.2]} 14... bxa4 {[%clk 0:04:57.3]} 15. Qxa4 {[%clk 0:06:40.1]} 15... Bd7
{[%clk 0:04:58.2]} 16. Bb5 {[%clk 0:06:36.8]} 16... Rc8 {[%clk 0:03:38.1]} 17.
c4 {[%clk 0:06:11.1]} 17... dxc4 {[%clk 0:02:46.6]} 18. Nxc4 {[%clk 0:06:09.2]}
18... a6 {[%clk 0:02:27.1]} 19. Qxa6 {[%clk 0:05:43.6]} 19... Bb4+ {[%clk
0:02:26.7]} 20. Ke2 {[%clk 0:05:38.3]} 20... O-O {[%clk 0:02:24.6]} 21. Rhg1+
{[%clk 0:05:38.1]} 21... Kh8 {[%clk 0:02:24.8]} 22. Qa4 {[%clk 0:03:17.4]} 22...
f4 {[%clk 0:01:45.7]} 23. h6 {[%clk 0:01:50.5]} 23... fxe3 {[%clk 0:01:40.3]}
24. fxe3 {[%clk 0:01:49.5]} 24... Qf6 {[%clk 0:01:18.6]} 25. Raf1 {[%clk
0:01:48.5]} 25... Ra8 {[%clk 0:01:15.4]} 26. Qb3 {[%clk 0:01:48.3]} 26... Qf5
{[%clk 0:00:54.9]} 27. Qd3 {[%clk 0:01:10.6]} 27... Ra2+ {[%clk 0:00:26.5]} 28.
Ncd2 {[%clk 0:01:10.8]} 28... Nxd4+ {[%clk 0:00:17.8]} 29. Nxd4 {[%clk
0:00:53.4]} 29... Qh5+ {[%clk 0:00:11.5]} 30. Ke1 {[%clk 0:00:48.6]} 30... Ra1+
{[%clk 0:00:10.6]} 31. Qb1 {[%clk 0:00:45.6]} 31... Rxb1# {[%clk 0:00:11.2]} 0-1

[Event "GrandPrix_29.05"]
[Site "Chess.com"]
[Date "2020.05.29"]
[Round "3"]
[White "Frozygul"]
[Black "GMStefanova"]
[Result "0-1"]
[WhiteElo "2173"]
[BlackElo "2510"]
[TimeControl "600+2"]
[EndTime "10:26:07 PDT"]
[Termination "GMStefanova won by resignation"]

1. d4 {[%clk 0:10:01.9]} 1... d5 {[%clk 0:10:00.1]} 2. Bf4 {[%clk 0:10:02.9]}
2... Nf6 {[%clk 0:09:58.4]} 3. e3 {[%clk 0:10:04]} 3... e6 {[%clk 0:09:58.8]} 4.
Nd2 {[%clk 0:10:04.3]} 4... Bd6 {[%clk 0:09:58.5]} 5. Bg3 {[%clk 0:10:05.7]}
5... O-O {[%clk 0:09:51]} 6. Bd3 {[%clk 0:10:05.5]} 6... c5 {[%clk 0:09:50.5]}
7. c3 {[%clk 0:10:06.7]} 7... Qc7 {[%clk 0:09:49.9]} 8. f4 {[%clk 0:10:03.4]}
8... c4 {[%clk 0:09:36.4]} 9. Bc2 {[%clk 0:09:59.9]} 9... b5 {[%clk 0:09:36.2]}
10. Bh4 {[%clk 0:08:52.6]} 10... Be7 {[%clk 0:09:19.8]} 11. Ngf3 {[%clk
0:08:37.3]} 11... Bb7 {[%clk 0:09:11.7]} 12. O-O {[%clk 0:07:24.3]} 12... Ne4
{[%clk 0:08:54.1]} 13. Nxe4 {[%clk 0:06:08.2]} 13... dxe4 {[%clk 0:08:54.3]} 14.
Bxe7 {[%clk 0:06:09.4]} 14... Qxe7 {[%clk 0:08:27.8]} 15. Nd2 {[%clk 0:05:46.9]}
15... f5 {[%clk 0:08:24.8]} 16. a4 {[%clk 0:05:36.1]} 16... a6 {[%clk
0:08:20.5]} 17. axb5 {[%clk 0:04:55.1]} 17... axb5 {[%clk 0:08:21]} 18. Rxa8
{[%clk 0:04:57]} 18... Bxa8 {[%clk 0:08:21.5]} 19. b3 {[%clk 0:04:45.9]} 19...
Bd5 {[%clk 0:08:04.2]} 20. b4 {[%clk 0:04:44.1]} 20... Nd7 {[%clk 0:07:57.7]}
21. Qb1 {[%clk 0:04:27.8]} 21... Nf6 {[%clk 0:07:48.8]} 22. Re1 {[%clk
0:04:05.5]} 22... Bc6 {[%clk 0:07:42.4]} 23. Qb2 {[%clk 0:03:45.1]} 23... Nd5
{[%clk 0:07:35.7]} 24. Nf1 {[%clk 0:03:45.9]} 24... g5 {[%clk 0:07:29.7]} 25. g3
{[%clk 0:03:30.4]} 25... h5 {[%clk 0:07:20.4]} 26. Bd1 {[%clk 0:03:22]} 26... h4
{[%clk 0:07:11.4]} 27. Re2 {[%clk 0:03:13.4]} 27... Kf7 {[%clk 0:06:55.7]} 28.
Qa1 {[%clk 0:02:53.3]} 28... Ra8 {[%clk 0:06:45.5]} 29. Qc1 {[%clk 0:02:49.5]}
29... Rh8 {[%clk 0:06:37.7]} 30. Ra2 {[%clk 0:02:36.1]} 30... Kf6 {[%clk
0:05:22.9]} 31. Qd2 {[%clk 0:01:51.5]} 31... hxg3 {[%clk 0:04:52.9]} 32. Nxg3
{[%clk 0:01:07.3]} 32... gxf4 {[%clk 0:04:05.8]} 33. Nh5+ {[%clk 0:00:29.2]}
33... Rxh5 {[%clk 0:03:50.1]} 34. Bxh5 {[%clk 0:00:31.1]} 34... Qh7 {[%clk
0:02:47]} 35. Ra6 {[%clk 0:00:24.7]} 35... Qxh5 {[%clk 0:01:22.1]} 36. Rxc6
{[%clk 0:00:24.9]} 36... fxe3 {[%clk 0:01:20.6]} 37. Qa2 {[%clk 0:00:11.9]}
37... Qd1+ {[%clk 0:01:13.9]} 0-1

[Event "GrandPrix_29.05"]
[Site "Chess.com"]
[Date "2020.05.29"]
[Round "3"]
[White "PlayChessSimple"]
[Black "wannabe2700"]
[Result "0-1"]
[WhiteElo "2232"]
[BlackElo "2175"]
[TimeControl "600+2"]
[EndTime "10:26:07 PDT"]
[Termination "wannabe2700 won on time"]

1. e4 {[%clk 0:10:00.5]} 1... e6 {[%clk 0:09:59.6]} 2. d4 {[%clk 0:09:57.6]}
2... d5 {[%clk 0:09:58.8]} 3. e5 {[%clk 0:09:58.4]} 3... c5 {[%clk 0:09:57.6]}
4. c3 {[%clk 0:09:59.2]} 4... Nc6 {[%clk 0:09:56.2]} 5. Nf3 {[%clk 0:09:59.4]}
5... Nge7 {[%clk 0:09:53.2]} 6. Be2 {[%clk 0:09:56]} 6... cxd4 {[%clk
0:09:42.9]} 7. cxd4 {[%clk 0:09:55.9]} 7... Nf5 {[%clk 0:09:41]} 8. Nc3 {[%clk
0:09:49.7]} 8... Qb6 {[%clk 0:09:38.9]} 9. Na4 {[%clk 0:09:50.3]} 9... Bb4+
{[%clk 0:09:23.5]} 10. Kf1 {[%clk 0:09:50.1]} 10... Qc7 {[%clk 0:09:21.6]} 11.
a3 {[%clk 0:09:21]} 11... Bf8 {[%clk 0:09:22]} 12. b4 {[%clk 0:09:21.9]} 12...
b6 {[%clk 0:08:58.9]} 13. Bb2 {[%clk 0:09:01.1]} 13... Bd7 {[%clk 0:08:41.3]}
14. Rc1 {[%clk 0:08:58.8]} 14... Qb7 {[%clk 0:08:31.5]} 15. g3 {[%clk
0:08:41.8]} 15... f6 {[%clk 0:08:21.9]} 16. Kg2 {[%clk 0:08:31.9]} 16... fxe5
{[%clk 0:08:22.4]} 17. b5 {[%clk 0:07:53.3]} 17... Ncxd4 {[%clk 0:08:10.6]} 18.
Nxe5 {[%clk 0:07:53.5]} 18... Nxb5 {[%clk 0:07:59.8]} 19. Bh5+ {[%clk
0:06:52.6]} 19... Ke7 {[%clk 0:07:30.2]} 20. Re1 {[%clk 0:06:38.1]} 20... Nbd6
{[%clk 0:07:25.9]} 21. Qd2 {[%clk 0:06:12.1]} 21... Kd8 {[%clk 0:06:59.9]} 22.
Nc3 {[%clk 0:04:35.3]} 22... Be7 {[%clk 0:06:59.4]} 23. Ne2 {[%clk 0:04:34.8]}
23... Bf6 {[%clk 0:06:49.7]} 24. Nf4 {[%clk 0:04:26.9]} 24... Rc8 {[%clk
0:06:46.4]} 25. Nxd7 {[%clk 0:04:06.7]} 25... Rxc1 {[%clk 0:06:25.5]} 26. Nxf6
{[%clk 0:03:40.5]} 26... Rxe1 {[%clk 0:06:24.4]} 27. Qxe1 {[%clk 0:03:39.2]}
27... Kc7 {[%clk 0:05:30.7]} 28. Nxe6+ {[%clk 0:03:03.9]} 28... Kb8 {[%clk
0:05:31.2]} 29. Ne8 {[%clk 0:01:25.3]} 29... Nxe8 {[%clk 0:03:52.6]} 30. Bxe8
{[%clk 0:01:25.1]} 30... d4+ {[%clk 0:03:37.2]} 31. Kg1 {[%clk 0:01:25.5]} 31...
Ne3 {[%clk 0:03:26.4]} 32. fxe3 {[%clk 0:01:05.7]} 32... Rxe8 {[%clk 0:03:22.2]}
33. Nxd4 {[%clk 0:01:03.7]} 33... Qe4 {[%clk 0:03:21.8]} 34. Kf2 {[%clk
0:00:39.8]} 34... Rf8+ {[%clk 0:03:18.6]} 35. Kg1 {[%clk 0:00:40.6]} 35... Re8
{[%clk 0:03:18.6]} 36. Kf2 {[%clk 0:00:32.4]} 36... g5 {[%clk 0:03:17.9]} 37.
Qe2 {[%clk 0:00:19.6]} 37... Rf8+ {[%clk 0:03:18]} 38. Kg1 {[%clk 0:00:17.9]}
38... Re8 {[%clk 0:03:16.9]} 39. Kf2 {[%clk 0:00:15.3]} 39... g4 {[%clk
0:03:11.8]} 40. Bc1 {[%clk 0:00:12.9]} 40... Rf8+ {[%clk 0:02:56.7]} 41. Kg1
{[%clk 0:00:13.2]} 41... Qb1 {[%clk 0:02:45.2]} 42. Qd2 {[%clk 0:00:04.1]} 42...
Rc8 {[%clk 0:02:40.1]} 43. Ne2 {[%clk 0:00:04.5]} 43... Rc2 {[%clk 0:02:25.7]}
44. Qd8+ {[%clk 0:00:03.8]} 44... Kb7 {[%clk 0:02:26]} 45. Qd7+ {[%clk 0:00:05]}
45... Rc7 {[%clk 0:02:27.2]} 46. Qd5+ {[%clk 0:00:06.1]} 46... Ka6 {[%clk
0:02:28.7]} 47. Qd2 {[%clk 0:00:04.8]} 47... Qe4 {[%clk 0:02:24.1]} 48. Kf2
{[%clk 0:00:04.6]} 48... Rc2 {[%clk 0:02:19.4]} 0-1